fUST/lending_fUST_20260526
["ID","MTS","AMOUNT","RATE_DAILY","PERIOD"]
[423005142,1779744639000,-500.0,8.219e-05,2]
[423005137,1779744639000,-617.46967758,8.219e-05,2]
[423005141,1779744639000,-500.0,8.219e-05,2]
[423005152,1779744639000,-500.0,8.219e-05,2]
[423005140,1779744639000,-500.0,8.219e-05,2]
[423005147,1779744639000,-500.0,8.219e-05,2]
[423005157,1779744639000,-500.0,8.219e-05,2]
[423005146,1779744639000,-500.0,8.219e-05,2]
[423005148,1779744639000,-500.0,8.219e-05,2]
[423005151,1779744639000,-500.0,8.219e-05,2]
[423005150,1779744639000,-500.0,8.219e-05,2]
[423005149,1779744639000,-500.80483389,8.219e-05,2]
[423005156,1779744639000,-500.0,8.219e-05,2]
[423005153,1779744639000,-500.0,8.219e-05,2]
[423005143,1779744639000,-500.0,8.219e-05,2]
[423005182,1779744639000,-500.0,8.219e-05,2]
[423005228,1779744639000,-500.60166429,8.219e-05,2]
[423005180,1779744639000,-500.0,8.219e-05,2]
[423005210,1779744639000,-500.0,8.219e-05,2]
[423005209,1779744639000,-594.75,8.219e-05,2]
[423005208,1779744639000,-500.0,8.219e-05,2]
[423005211,1779744639000,-500.0,8.219e-05,2]
[423005213,1779744639000,-1299.64,8.219e-05,2]
[423005215,1779744639000,-748.7,8.219e-05,2]
[423005214,1779744639000,-500.0,8.219e-05,2]
[423005217,1779744639000,-500.0,8.219e-05,2]
[423005216,1779744639000,-500.0,8.219e-05,2]
[423005207,1779744639000,-500.0,8.219e-05,2]
[423005218,1779744639000,-350.34889778,8.219e-05,2]
[423005219,1779744639000,-500.0,8.219e-05,2]
[423005225,1779744639000,-500.0,8.219e-05,2]
[423005224,1779744639000,-500.0,8.219e-05,2]
[423005222,1779744639000,-500.0,8.219e-05,2]
[423005221,1779744639000,-500.0,8.219e-05,2]
[423005220,1779744639000,-612.95,8.219e-05,2]
[423005223,1779744639000,-500.51875377,8.219e-05,2]
[423005226,1779744639000,-500.0,8.219e-05,2]
[423005177,1779744639000,-500.0,8.219e-05,2]
[423005227,1779744639000,-500.0,8.219e-05,2]
[423005204,1779744639000,-534.55,8.219e-05,2]
[423005212,1779744639000,-500.0,8.219e-05,2]
[423005205,1779744639000,-567.45,8.219e-05,2]
[423005184,1779744639000,-500.0,8.219e-05,2]
[423005183,1779744639000,-500.0,8.219e-05,2]
[423005185,1779744639000,-500.0,8.219e-05,2]
[423005186,1779744639000,-500.0,8.219e-05,2]
[423005187,1779744639000,-500.0,8.219e-05,2]
[423005206,1779744639000,-500.0,8.219e-05,2]
[423005188,1779744639000,-500.0,8.219e-05,2]
[423005191,1779744639000,-500.0,8.219e-05,2]
[423005192,1779744639000,-500.23716352,8.219e-05,2]
[423005189,1779744639000,-500.0,8.219e-05,2]
[423005193,1779744639000,-500.12252924,8.219e-05,2]
[423005190,1779744639000,-500.0,8.219e-05,2]
[423005196,1779744639000,-539.33979203,8.219e-05,2]
[423005194,1779744639000,-500.0,8.219e-05,2]
[423005201,1779744639000,-500.0,8.219e-05,2]
[423005198,1779744639000,-500.0,8.219e-05,2]
[423005199,1779744639000,-500.0,8.219e-05,2]
[423005203,1779744639000,-500.0,8.219e-05,2]
[423005200,1779744639000,-500.0,8.219e-05,2]
[423005202,1779744639000,-499.0,8.219e-05,2]
[423005195,1779744639000,-500.0,8.219e-05,2]
[423005197,1779744639000,-595.23,8.219e-05,2]
[423005232,1779744640000,-500.0,8.219e-05,2]
[423005230,1779744640000,-500.0,8.219e-05,2]
[423005231,1779744640000,-1480.26,8.219e-05,2]
[423005239,1779744640000,-500.0,8.219e-05,2]
[423005229,1779744640000,-500.0,8.219e-05,2]
[423005233,1779744640000,-500.0,8.219e-05,2]
[423005236,1779744640000,-500.0,8.219e-05,2]
[423005237,1779744640000,-500.0,8.219e-05,2]
[423005238,1779744640000,-500.0,8.219e-05,2]
[423005235,1779744640000,-500.0,8.219e-05,2]
[423005234,1779744640000,-500.0,8.219e-05,2]
[423005241,1779744640000,-500.0,8.219e-05,2]
[423005256,1779744640000,-413.80746047,8.219e-05,2]
[423005253,1779744640000,-500.0,8.219e-05,2]
[423005252,1779744640000,-500.0,8.219e-05,2]
[423005249,1779744640000,-500.0,8.219e-05,2]
[423005246,1779744640000,-500.0,8.219e-05,2]
[423005248,1779744640000,-1061.18,8.219e-05,2]
[423005250,1779744640000,-1081.53,8.219e-05,2]
[423005255,1779744640000,-500.0,8.219e-05,2]
[423005242,1779744640000,-500.0,8.219e-05,2]
[423005244,1779744640000,-500.0,8.219e-05,2]
[423005240,1779744640000,-500.0,8.219e-05,2]
[423005254,1779744640000,-500.0,8.219e-05,2]
[423005251,1779744640000,-500.0,8.219e-05,2]
[423005247,1779744640000,-500.0,8.219e-05,2]
[423005290,1779744644000,-4521.76164968,8.137e-05,2]
[423005325,1779744647000,-500.0,8.219e-05,2]
[423005331,1779744647000,-500.0,8.219e-05,2]
[423005334,1779744647000,-500.0,8.219e-05,2]
[423005335,1779744647000,-500.0,8.219e-05,2]
[423005330,1779744647000,-225.28986636,8.219e-05,2]
[423005328,1779744647000,-500.0,8.219e-05,2]
[423005337,1779744647000,-500.0,8.219e-05,2]
[423005327,1779744647000,-500.0,8.219e-05,2]
[423005338,1779744647000,-500.0,8.219e-05,2]
[423005319,1779744647000,-500.0,8.219e-05,2]
[423005326,1779744647000,-511.43,8.219e-05,2]
[423005323,1779744647000,-500.0,8.219e-05,2]
[423005322,1779744647000,-765.71,8.219e-05,2]
[423005324,1779744647000,-693.97,8.219e-05,2]
[423005321,1779744647000,-500.0,8.219e-05,2]
[423005320,1779744647000,-500.0,8.219e-05,2]
[423005318,1779744647000,-500.0,8.219e-05,2]
[423005316,1779744647000,-478.23835032,8.137e-05,2]
[423005317,1779744647000,-86.19253953,8.219e-05,2]
[423005329,1779744647000,-500.0,8.219e-05,2]
[423005333,1779744647000,-500.0,8.219e-05,2]
[423005336,1779744647000,-500.0,8.219e-05,2]
[423005340,1779744647000,-947.35,8.219e-05,2]
[423005355,1779744647000,-500.0,8.219e-05,2]
[423005359,1779744647000,-632.50706103,8.219e-05,2]
[423005357,1779744647000,-500.0,8.219e-05,2]
[423005360,1779744647000,-372.25986351,8.219e-05,2]
[423005358,1779744647000,-500.0,8.219e-05,2]
[423005356,1779744647000,-500.0,8.219e-05,2]
[423005354,1779744647000,-500.0,8.219e-05,2]
[423005348,1779744647000,-500.0,8.219e-05,2]
[423005349,1779744647000,-500.0,8.219e-05,2]
[423005343,1779744647000,-500.0,8.219e-05,2]
[423005353,1779744647000,-500.0,8.219e-05,2]
[423005346,1779744647000,-500.0,8.219e-05,2]
[423005342,1779744647000,-500.0,8.219e-05,2]
[423005351,1779744647000,-728.06,8.219e-05,2]
[423005352,1779744647000,-500.0,8.219e-05,2]
[423005350,1779744647000,-500.0,8.219e-05,2]
[423005332,1779744647000,-500.0,8.219e-05,2]
[423005339,1779744647000,-500.0,8.219e-05,2]
[423005345,1779744647000,-757.72,8.219e-05,2]
[423005344,1779744647000,-333.69,8.219e-05,2]
[423005341,1779744647000,-500.0,8.219e-05,2]
[423005347,1779744647000,-500.0,8.219e-05,2]
[423005362,1779744673000,-5000.0,8.137e-05,2]
[423005363,1779744691000,-5000.0,7.975e-05,2]
[423005367,1779744981000,5000.0,0.00017,120]
[423005368,1779744987000,174.67087926,0.0001704,120]
[423005369,1779745003000,172.90719078,0.0001704,120]
[423005370,1779745018000,171.74040009,0.0001704,120]
[423005371,1779745034000,170.27849979,0.00017075,120]
[423005372,1779745234000,5000.0,5.005e-05,2]
[423005373,1779745255000,1278.77103432,5.005e-05,2]
[423005374,1779745270000,5000.0,5.005e-05,2]
[423005376,1779745292000,5000.0,5.005e-05,2]
[423005377,1779745314000,5000.0,5.005e-05,2]
[423005379,1779745336000,5000.0,5.005e-05,2]
[423005380,1779745359000,5000.0,5.005e-05,2]
[423005381,1779745380000,5000.0,5.005e-05,2]
[423005382,1779745403000,5000.0,5.005e-05,2]
[423005384,1779745426000,5000.0,5.005e-05,2]
[423005385,1779745447000,5000.0,5.005e-05,2]
[423005386,1779745469000,5000.0,5.005e-05,2]
[423005387,1779745491000,5000.0,5.005e-05,2]
[423005388,1779745514000,5000.0,5.005e-05,2]
[423005395,1779745533000,-500.0,5.094e-05,2]
[423005394,1779745533000,-500.0,5.094e-05,2]
[423005393,1779745533000,-500.0,5.094e-05,2]
[423005391,1779745533000,-1200.0,5.093e-05,2]
[423005392,1779745533000,-500.0,5.094e-05,2]
[423005389,1779745533000,-786.0,5.093e-05,2]
[423005390,1779745533000,-300.0,5.093e-05,2]
[423005396,1779745534000,-500.0,5.094e-05,2]
[423005398,1779745534000,-190.60417685,5.094e-05,2]
[423005397,1779745534000,-500.0,5.094e-05,2]
[423005399,1779745534000,-500.0,5.094e-05,2]
[423005401,1779745534000,-345.68181963,5.094e-05,2]
[423005400,1779745534000,-500.0,5.094e-05,2]
[423005404,1779745534000,-500.0,5.094e-05,2]
[423005403,1779745534000,-500.0,5.094e-05,2]
[423005405,1779745534000,-500.0,5.094e-05,2]
[423005406,1779745534000,-381.86318336,5.094e-05,2]
[423005408,1779745534000,-583.18300333,5.096e-05,2]
[423005407,1779745534000,-500.0,5.094e-05,2]
[423005402,1779745534000,-500.0,5.094e-05,2]
[423005409,1779745536000,2151.75680981,5.005e-05,2]
[423005411,1779745750000,152.0,0.00014733,30]
[423007310,1779745832000,-300.0,5.416e-05,2]
[423007306,1779745832000,-24672.4964494,5.151e-05,2]
[423007301,1779745832000,-709.27737451,5.143e-05,2]
[423007308,1779745832000,-300.0,5.416e-05,2]
[423007302,1779745832000,-1646.14399814,5.143e-05,2]
[423007298,1779745832000,-134.59137637,5.143e-05,2]
[423007303,1779745832000,-1646.14399814,5.143e-05,2]
[423007307,1779745832000,-300.0,5.416e-05,2]
[423007299,1779745832000,-936.86662363,5.143e-05,2]
[423007294,1779745832000,-1237.30973074,5.143e-05,2]
[423007312,1779745832000,-300.0,5.416e-05,2]
[423007305,1779745832000,-571.51934326,5.145e-05,2]
[423007324,1779745832000,-300.0,5.416e-05,2]
[423007297,1779745832000,-274.24289103,5.143e-05,2]
[423007322,1779745832000,-300.0,5.416e-05,2]
[423007325,1779745832000,-300.0,5.416e-05,2]
[423007329,1779745832000,-864.0,6.555e-05,2]
[423007315,1779745832000,-300.0,5.416e-05,2]
[423007332,1779745832000,-799.26072673,5.143e-05,2]
[423007318,1779745832000,-300.0,5.416e-05,2]
[423007320,1779745832000,-300.0,5.416e-05,2]
[423007330,1779745832000,-18051.61883655,7.132e-05,2]
[423007316,1779745832000,-300.0,5.416e-05,2]
[423007317,1779745832000,-300.0,5.416e-05,2]
[423007313,1779745832000,-300.0,5.416e-05,2]
[423007311,1779745832000,-300.0,5.416e-05,2]
[423007327,1779745832000,-720.0,5.959e-05,2]
[423007326,1779745832000,-600.0,5.417e-05,2]
[423007321,1779745832000,-300.0,5.416e-05,2]
[423007525,1779745838000,-1646.14399814,5.143e-05,2]
[423007529,1779745838000,-1646.14399814,5.143e-05,2]
[423007528,1779745838000,-205.07575774,5.143e-05,2]
[423007530,1779745838000,-1646.14399814,5.143e-05,2]
[423007524,1779745838000,-1646.14399814,5.143e-05,2]
[423007520,1779745838000,-1646.14399814,5.143e-05,2]
[423007523,1779745838000,-1646.14399814,5.143e-05,2]
[423007521,1779745838000,-1499.24720991,5.143e-05,2]
[423007519,1779745838000,-846.88327141,5.143e-05,2]
[423007527,1779745838000,-597.98479815,5.143e-05,2]
[423007522,1779745838000,-146.89678823,5.143e-05,2]
[423007531,1779745838000,-1646.14399814,5.143e-05,2]
[423007526,1779745838000,-1646.14399814,5.143e-05,2]
[423007534,1779745838000,-674.39282505,7.145e-05,2]
[423007532,1779745838000,-1405146.48430648,7.132e-05,2]
[423007544,1779745838000,-160.0,7.968e-05,2]
[423007540,1779745838000,-325.9002829,7.911e-05,2]
[423007537,1779745838000,-210.1038653,7.252e-05,2]
[423007538,1779745838000,-281.1764378,7.905e-05,2]
[423007541,1779745838000,-326.0270601,7.911e-05,2]
[423007539,1779745838000,-326.0419999,7.911e-05,2]
[423007543,1779745838000,-244.0,7.931e-05,2]
[423007542,1779745838000,-1000.0,7.931e-05,2]
[423007536,1779745838000,-167.07741502,7.216e-05,2]
[423007535,1779745838000,-1000.0,7.21e-05,2]
[423007533,1779745838000,-1594.07124984,7.144e-05,2]
[423007584,1779745839000,-532.56,8.219e-05,2]
[423007585,1779745839000,-512.27,8.219e-05,2]
[423007595,1779745839000,-500.0,8.219e-05,2]
[423007583,1779745839000,-500.0,8.219e-05,2]
[423007582,1779745839000,-500.0,8.219e-05,2]
[423007580,1779745839000,-500.0,8.219e-05,2]
[423007581,1779745839000,-500.0,8.219e-05,2]
[423007579,1779745839000,-500.0,8.219e-05,2]
[423007605,1779745839000,-500.0,8.219e-05,2]
[423007587,1779745839000,-146.79157465,8.219e-05,2]
[423007578,1779745839000,-697.73,8.219e-05,2]
[423007577,1779745839000,-500.0,8.219e-05,2]
[423007586,1779745839000,-569.97,8.219e-05,2]
[423007593,1779745839000,-500.0,8.219e-05,2]
[423007588,1779745839000,-353.20842535,8.219e-05,2]
[423007591,1779745839000,-717.51,8.219e-05,2]
[423007590,1779745839000,-276.61308722,8.219e-05,2]
[423007589,1779745839000,-546.57025989,8.219e-05,2]
[423007592,1779745839000,-1245.49,8.219e-05,2]
[423007597,1779745839000,-500.0,8.219e-05,2]
[423007607,1779745839000,-500.0,8.219e-05,2]
[423007608,1779745839000,-500.0,8.219e-05,2]
[423007609,1779745839000,-1016.96,8.219e-05,2]
[423007604,1779745839000,-500.0,8.219e-05,2]
[423007602,1779745839000,-500.0,8.219e-05,2]
[423007603,1779745839000,-500.0,8.219e-05,2]
[423007576,1779745839000,-501.60028785,8.219e-05,2]
[423007594,1779745839000,-500.0,8.219e-05,2]
[423007575,1779745839000,-726.15,8.219e-05,2]
[423007545,1779745839000,-160.0,7.968e-05,2]
[423007572,1779745839000,-501.59499998,8.219e-05,2]
[423007596,1779745839000,-500.0,8.219e-05,2]
[423007546,1779745839000,-160.0,8.055e-05,2]
[423007547,1779745839000,-17420.76685834,8.1e-05,5]
[423007550,1779745839000,-157.5778989,8.166e-05,2]
[423007552,1779745839000,-2025.7426,8.219e-05,2]
[423007551,1779745839000,-976.1860854,8.206e-05,2]
[423007553,1779745839000,-500.0,8.219e-05,2]
[423007557,1779745839000,-500.0,8.219e-05,2]
[423007548,1779745839000,-8788.508574,8.166e-05,2]
[423007556,1779745839000,-500.0,8.219e-05,2]
[423007554,1779745839000,-500.0,8.219e-05,2]
[423007555,1779745839000,-500.0,8.219e-05,2]
[423007549,1779745839000,-210.1038652,8.166e-05,2]
[423007571,1779745839000,-501.12217388,8.219e-05,2]
[423007559,1779745839000,-587.41,8.219e-05,2]
[423007569,1779745839000,-500.0,8.219e-05,2]
[423007558,1779745839000,-500.0,8.219e-05,2]
[423007560,1779745839000,-500.0,8.219e-05,2]
[423007562,1779745839000,-412.50967465,8.219e-05,2]
[423007561,1779745839000,-500.0,8.219e-05,2]
[423007564,1779745839000,-500.0,8.219e-05,2]
[423007566,1779745839000,-500.0,8.219e-05,2]
[423007565,1779745839000,-1036.46,8.219e-05,2]
[423007563,1779745839000,-460.77,8.219e-05,2]
[423007567,1779745839000,-665.06,8.219e-05,2]
[423007570,1779745839000,-500.0,8.219e-05,2]
[423007574,1779745839000,-500.0,8.219e-05,2]
[423007573,1779745839000,-500.0,8.219e-05,2]
[423007568,1779745839000,-500.0,8.219e-05,2]
[423007606,1779745839000,-509.64,8.219e-05,2]
[423007635,1779745839000,-469.11804013,8.219e-05,2]
[423007598,1779745839000,-1418.59,8.219e-05,2]
[423007644,1779745839000,-576.00494175,8.219e-05,2]
[423007637,1779745839000,-500.0,8.219e-05,2]
[423007640,1779745839000,-495.6394583,8.219e-05,2]
[423007642,1779745839000,-500.0,8.219e-05,2]
[423007643,1779745839000,-4399.09660432,8.219e-05,2]
[423007646,1779745839000,-500.0,8.219e-05,2]
[423007647,1779745839000,-364.68529578,8.219e-05,2]
[423007648,1779745839000,-500.0,8.219e-05,2]
[423007657,1779745839000,-500.0,8.219e-05,2]
[423007654,1779745839000,-1350.39,8.219e-05,2]
[423007649,1779745839000,-500.0,8.219e-05,2]
[423007655,1779745839000,-500.0,8.219e-05,2]
[423007658,1779745839000,-500.0,8.219e-05,2]
[423007639,1779745839000,-500.0,8.219e-05,2]
[423007656,1779745839000,-500.0,8.219e-05,2]
[423007651,1779745839000,-1406.23,8.219e-05,2]
[423007653,1779745839000,-500.0,8.219e-05,2]
[423007660,1779745839000,-566.56,8.219e-05,2]
[423007659,1779745839000,-3482.91,8.219e-05,2]
[423007662,1779745839000,-2123.8,8.219e-05,2]
[423007661,1779745839000,-500.0,8.219e-05,2]
[423007664,1779745839000,-900.94,8.219e-05,2]
[423007665,1779745839000,-500.0,8.219e-05,2]
[423007663,1779745839000,-500.0,8.219e-05,2]
[423007668,1779745839000,-500.0,8.219e-05,2]
[423007667,1779745839000,-522.89,8.219e-05,2]
[423007666,1779745839000,-500.0,8.219e-05,2]
[423007600,1779745839000,-500.0,8.219e-05,2]
[423007652,1779745839000,-500.0,8.219e-05,2]
[423007638,1779745839000,-500.0,8.219e-05,2]
[423007650,1779745839000,-527.16,8.219e-05,2]
[423007645,1779745839000,-283.59505825,8.219e-05,2]
[423007641,1779745839000,-596.28,8.219e-05,2]
[423007599,1779745839000,-500.0,8.219e-05,2]
[423007611,1779745839000,-500.0,8.219e-05,2]
[423007622,1779745839000,-551.38369595,8.219e-05,2]
[423007623,1779745839000,-500.0,8.219e-05,2]
[423007610,1779745839000,-500.0,8.219e-05,2]
[423007621,1779745839000,-500.0,8.219e-05,2]
[423007612,1779745839000,-500.0,8.219e-05,2]
[423007613,1779745839000,-733.8,8.219e-05,2]
[423007614,1779745839000,-500.0,8.219e-05,2]
[423007617,1779745839000,-500.0,8.219e-05,2]
[423007620,1779745839000,-500.0,8.219e-05,2]
[423007616,1779745839000,-500.0,8.219e-05,2]
[423007615,1779745839000,-500.0,8.219e-05,2]
[423007601,1779745839000,-500.0,8.219e-05,2]
[423007634,1779745839000,-500.0,8.219e-05,2]
[423007618,1779745839000,-500.0,8.219e-05,2]
[423007636,1779745839000,-500.0,8.219e-05,2]
[423007629,1779745839000,-907.88,8.219e-05,2]
[423007633,1779745839000,-371.8441674,8.219e-05,2]
[423007630,1779745839000,-435.88337705,8.219e-05,2]
[423007632,1779745839000,-128.1558326,8.219e-05,2]
[423007627,1779745839000,-500.0,8.219e-05,2]
[423007628,1779745839000,-500.0,8.219e-05,2]
[423007626,1779745839000,-500.0,8.219e-05,2]
[423007624,1779745839000,-256.19294249,8.219e-05,2]
[423007625,1779745839000,-243.80705751,8.219e-05,2]
[423007619,1779745839000,-561.72,8.219e-05,2]
[423007631,1779745839000,-500.0,8.219e-05,2]
[423007707,1779745840000,-500.0,8.219e-05,2]
[423007729,1779745840000,-472.19199424,8.219e-05,2]
[423007731,1779745840000,-27.80800576,8.219e-05,2]
[423007727,1779745840000,-1707.24,8.219e-05,2]
[423007716,1779745840000,-3617.78,8.219e-05,2]
[423007714,1779745840000,-500.0,8.219e-05,2]
[423007669,1779745840000,-500.0,8.219e-05,2]
[423007709,1779745840000,-1641.72,8.219e-05,2]
[423007704,1779745840000,-797.15,8.219e-05,2]
[423007712,1779745840000,-500.0,8.219e-05,2]
[423007706,1779745840000,-1563.23,8.219e-05,2]
[423007717,1779745840000,-500.0,8.219e-05,2]
[423007703,1779745840000,-2363.80856731,8.219e-05,2]
[423007710,1779745840000,-500.0,8.219e-05,2]
[423007734,1779745840000,-1117.96,8.219e-05,2]
[423007719,1779745840000,-350.79005373,8.219e-05,2]
[423007737,1779745840000,-376.91477149,8.219e-05,2]
[423007723,1779745840000,-1580.85,8.219e-05,2]
[423007721,1779745840000,-1284.62,8.219e-05,2]
[423007733,1779745840000,-500.0,8.219e-05,2]
[423007725,1779745840000,-500.0,8.219e-05,2]
[423007749,1779745840000,-500.0,8.219e-05,2]
[423007739,1779745840000,-468.59985367,8.219e-05,2]
[423007751,1779745840000,-500.0,8.219e-05,2]
[423007753,1779745840000,-2179.31,8.219e-05,2]
[423007756,1779745840000,-3460.37,8.219e-05,2]
[423007755,1779745840000,-669.26,8.219e-05,2]
[423007760,1779745840000,-500.88562307,8.219e-05,2]
[423007758,1779745840000,-500.0,8.219e-05,2]
[423007736,1779745840000,-123.08522851,8.219e-05,2]
[423007701,1779745840000,-500.0,8.219e-05,2]
[423007671,1779745840000,-500.0,8.219e-05,2]
[423007697,1779745840000,-533.52,8.219e-05,2]
[423007670,1779745840000,-981.24,8.219e-05,2]
[423007680,1779745840000,-500.0,8.219e-05,2]
[423007674,1779745840000,-164.30900787,8.219e-05,2]
[423007672,1779745840000,-500.0,8.219e-05,2]
[423007682,1779745840000,-614.79,8.219e-05,2]
[423007681,1779745840000,-1448.9,8.219e-05,2]
[423007676,1779745840000,-1948.43,8.219e-05,2]
[423007679,1779745840000,-500.0,8.219e-05,2]
[423007673,1779745840000,-500.0,8.219e-05,2]
[423007678,1779745840000,-210.24423488,8.219e-05,2]
[423007675,1779745840000,-1585.41,8.219e-05,2]
[423007677,1779745840000,-500.0,8.219e-05,2]
[423007688,1779745840000,-323.162959,8.219e-05,2]
[423007685,1779745840000,-500.0,8.219e-05,2]
[423007684,1779745840000,-500.0,8.219e-05,2]
[423007762,1779745840000,-1417.97,8.219e-05,2]
[423007691,1779745840000,-500.0,8.219e-05,2]
[423007695,1779745840000,-826.27,8.219e-05,2]
[423007689,1779745840000,-500.0,8.219e-05,2]
[423007692,1779745840000,-500.8,8.219e-05,2]
[423007696,1779745840000,-1030.3,8.219e-05,2]
[423007686,1779745840000,-4623.16,8.219e-05,2]
[423007694,1779745840000,-1867.02,8.219e-05,2]
[423007690,1779745840000,-500.0,8.219e-05,2]
[423007693,1779745840000,-500.0,8.219e-05,2]
[423007687,1779745840000,-500.0,8.219e-05,2]
[423007698,1779745840000,-1549.79,8.219e-05,2]
[423007699,1779745840000,-500.0,8.219e-05,2]
[423007700,1779745840000,-500.0,8.219e-05,2]
[423007702,1779745840000,-500.0,8.219e-05,2]
[423007741,1779745840000,-31.40014633,8.219e-05,2]
[423007828,1779745840000,-500.0,8.493e-05,2]
[423007745,1779745840000,-1906.38167906,8.219e-05,2]
[423007819,1779745840000,-1958.12655765,8.241e-05,2]
[423007835,1779745840000,-500.0,8.493e-05,2]
[423007831,1779745840000,-587.41,8.493e-05,2]
[423007833,1779745840000,-500.0,8.493e-05,2]
[423007837,1779745840000,-446.55660578,8.493e-05,2]
[423007840,1779745840000,-500.0,8.493e-05,2]
[423007838,1779745840000,-1036.46,8.493e-05,2]
[423007842,1779745840000,-665.06,8.493e-05,2]
[423007845,1779745840000,-152.14308002,8.493e-05,2]
[423007847,1779745840000,-500.0,8.493e-05,2]
[423007844,1779745840000,-500.0,8.493e-05,2]
[423007858,1779745840000,-500.0,8.493e-05,2]
[423007860,1779745840000,-500.0,8.493e-05,2]
[423007862,1779745840000,-512.27,8.493e-05,2]
[423007851,1779745840000,-500.0,8.493e-05,2]
[423007856,1779745840000,-500.0,8.493e-05,2]
[423007853,1779745840000,-726.15,8.493e-05,2]
[423007855,1779745840000,-697.73,8.493e-05,2]
[423007865,1779745840000,-717.51,8.493e-05,2]
[423007866,1779745840000,-1245.49,8.493e-05,2]
[423007864,1779745840000,-569.97,8.493e-05,2]
[423007870,1779745840000,-500.0,8.493e-05,2]
[423007868,1779745840000,-500.0,8.493e-05,2]
[423007874,1779745840000,-500.0,8.493e-05,2]
[423007872,1779745840000,-1418.59,8.493e-05,2]
[423007877,1779745840000,-500.0,8.493e-05,2]
[423007876,1779745840000,-500.0,8.493e-05,2]
[423007879,1779745840000,-500.0,8.493e-05,2]
[423007743,1779745840000,-2989.13832094,8.219e-05,2]
[423007829,1779745840000,-500.0,8.493e-05,2]
[423007817,1779745840000,-537.6845,8.224e-05,2]
[423007849,1779745840000,-500.0,8.493e-05,2]
[423007822,1779745840000,-1644.4792,8.493e-05,2]
[423007820,1779745840000,-4909.72028507,8.284e-05,2]
[423007764,1779745840000,-500.33360588,8.219e-05,2]
[423007774,1779745840000,-5688.99,8.219e-05,2]
[423007766,1779745840000,-26513.49,8.219e-05,2]
[423007776,1779745840000,-500.0,8.219e-05,2]
[423007780,1779745840000,-500.0,8.219e-05,2]
[423007768,1779745840000,-1016.1,8.219e-05,2]
[423007770,1779745840000,-500.0,8.219e-05,2]
[423007782,1779745840000,-500.0,8.219e-05,2]
[423007772,1779745840000,-500.0,8.219e-05,2]
[423007784,1779745840000,-743.63,8.219e-05,2]
[423007786,1779745840000,-548.33576438,8.219e-05,2]
[423007788,1779745840000,-500.0,8.219e-05,2]
[423007790,1779745840000,-500.0,8.219e-05,2]
[423007792,1779745840000,-500.0,8.219e-05,2]
[423007747,1779745840000,-500.0,8.219e-05,2]
[423007799,1779745840000,-500.0,8.219e-05,2]
[423007826,1779745840000,-500.0,8.493e-05,2]
[423007815,1779745840000,-162.380719,8.224e-05,2]
[423007824,1779745840000,-258.2616663,8.493e-05,2]
[423007813,1779745840000,-500.0,8.224e-05,2]
[423007811,1779745840000,-500.0,8.219e-05,2]
[423007810,1779745840000,-407.60919539,8.219e-05,2]
[423007795,1779745840000,-1343.42,8.219e-05,2]
[423007806,1779745840000,-500.0,8.219e-05,2]
[423007803,1779745840000,-3439.79,8.219e-05,2]
[423007801,1779745840000,-2312.15,8.219e-05,2]
[423007804,1779745840000,-973.6,8.219e-05,2]
[423007793,1779745840000,-500.0,8.219e-05,2]
[423007797,1779745840000,-500.0,8.219e-05,2]
[423007808,1779745840000,-500.0,8.219e-05,2]
[423007967,1779745841000,-1585.41,8.493e-05,2]
[423007971,1779745841000,-500.0,8.493e-05,2]
[423007975,1779745841000,-614.79,8.493e-05,2]
[423007965,1779745841000,-500.0,8.493e-05,2]
[423007958,1779745841000,-500.0,8.493e-05,2]
[423007960,1779745841000,-981.24,8.493e-05,2]
[423007952,1779745841000,-900.94,8.493e-05,2]
[423007954,1779745841000,-500.0,8.493e-05,2]
[423007956,1779745841000,-500.0,8.493e-05,2]
[423007940,1779745841000,-1406.23,8.493e-05,2]
[423007950,1779745841000,-2123.8,8.493e-05,2]
[423007963,1779745841000,-649.71911033,8.493e-05,2]